bitfinex/quotes_SOLUSD_20251118
["timestamp","ask_amount","ask_price","bid_price","bid_amount"]
[1763482905335,9.96679964,141.27,141.22,9.96679964]
[1763482905537,9.96679964,141.28,141.23,14.36679964]
[1763482905702,9.96679964,141.28,141.2,0.70821529]
[1763482905703,0.71,141.33,141.25,9.96679964]
[1763482906042,9.96679964,141.29,141.26,4.4]
[1763482906421,0.71,141.32,141.26,4.4]
[1763482906622,9.96679964,141.29,141.26,4.4]
[1763482907342,0.71,141.28,141.22,9.96679964]
[1763482907538,9.96679964,141.27,141.23,4.4]
[1763482907718,2.0,141.38,141.23,4.4]
[1763482907719,0.71,141.31,141.23,4.4]
[1763482907925,9.96679964,141.29,141.24,9.96679964]
[1763482908241,0.71,141.31,141.23,4.4]
[1763482908242,9.96679964,141.25,141.23,4.4]
[1763482908541,0.71,141.31,141.23,4.4]
[1763482908542,9.96679964,141.24,141.23,4.4]
[1763482908764,9.96679964,141.24,141.14,0.70851636]
[1763482908922,4.4,141.29,141.14,14.36679964]
[1763482908923,9.96679964,141.19,141.14,14.36679964]
[1763482909248,0.71,141.23,141.14,4.4]
[1763482909249,9.96679964,141.18,141.14,4.4]
[1763482909438,35.21632154,141.34,141.14,4.4]
[1763482909439,9.96679964,141.17,141.14,4.4]
[1763482909614,4.4,141.24,141.14,4.4]
[1763482909815,0.71,141.23,141.14,4.4]
[1763482910023,9.96679964,141.18,141.14,4.4]
[1763482910223,9.96679964,141.19,141.14,14.36679964]
[1763482910444,0.71,141.22,141.15,9.96679964]
[1763482910650,9.96679964,141.2,141.14,5.10851636]
[1763482910824,9.96679964,141.19,141.14,5.10851636]
[1763482911152,9.96679964,141.2,141.14,5.10851636]
[1763482911520,9.96679964,141.21,141.14,5.10851636]
[1763482911719,9.96679964,141.22,141.16,9.96679964]
[1763482911924,9.96679964,141.23,141.17,9.96679964]
[1763482912126,9.96679964,141.24,141.19,9.96679964]
[1763482912344,9.96679964,141.24,141.2,4.4]
[1763482912739,9.96679964,141.25,141.2,4.4]
[1763482912927,9.96679964,141.25,141.2,14.36679964]
[1763482913136,9.96679964,141.25,141.2,4.4]
[1763482913536,9.96679964,141.25,141.2,14.36679964]
[1763482913742,0.71,141.28,141.21,9.96679964]
[1763482914070,9.96679964,141.24,141.2,4.4]
[1763482914230,9.96679964,141.25,141.2,4.4]
[1763482914427,9.96679964,141.25,141.2,14.36679964]
[1763482914938,0.71,141.25,141.19,9.71082552]
[1763482915244,9.71082552,141.24,141.2,4.4]
[1763482915445,9.71082552,141.21,141.18,4.4]
[1763482915636,2.0,141.3,141.12,0.70861678]
[1763482915637,9.71082552,141.2,141.17,4.4]
[1763482916036,9.71082552,141.19,141.17,4.4]
[1763482916650,10.42082552,141.19,141.17,4.4]
[1763482916957,9.71082552,141.18,141.17,4.4]
[1763482917346,0.71,141.21,141.17,4.4]
[1763482917650,9.71082552,141.19,141.14,10.41934188]
[1763482917850,0.71,141.21,141.14,0.70851636]
[1763482917851,9.71082552,141.18,141.14,0.70851636]
[1763482918030,9.71082552,141.17,141.13,4.4]
[1763482918234,0.71,141.23,141.13,14.11082552]
[1763482918547,9.71082552,141.17,141.13,4.4]
[1763482919127,9.71082552,141.18,141.13,4.4]
[1763482919334,9.71082552,141.19,141.14,10.41934188]
[1763482919532,9.71082552,141.19,141.14,0.70851636]
[1763482919748,9.71082552,141.18,141.14,0.70851636]
[1763482920336,9.71082552,141.16,141.13,4.4]
[1763482920532,10.42082552,141.16,141.11,0.70866699]
[1763482920751,9.71082552,141.24,141.13,9.71082552]
[1763482920950,0.71,141.22,141.13,10.41939208]
[1763482921341,9.71082552,141.2,141.15,9.71082552]
[1763482921662,304.47443858,141.37,141.16,9.71082552]
[1763482921663,9.71082552,141.21,141.16,9.71082552]
[1763482921847,9.71082552,141.21,141.16,4.4]
[1763482922156,9.71082552,141.21,141.16,14.11082552]
[1763482922335,0.71,141.24,141.17,10.41919132]
[1763482922536,9.71082552,141.22,141.17,0.7083658]
[1763482922760,9.71082552,141.21,141.18,4.4]
[1763482923162,0.71,141.27,141.18,4.4]
[1763482923335,9.71082552,141.24,141.19,9.71082552]
[1763482923657,0.71,141.27,141.13,0.70856656]
[1763482923848,2.0,141.31,141.03,82.99316783]
[1763482923849,9.71082552,141.21,141.15,9.71082552]
[1763482924157,9.71082552,141.21,141.15,10.41929169]
[1763482924334,9.71082552,141.21,141.16,9.71082552]
[1763482924539,0.71,141.21,141.15,10.41929169]
[1763482924779,9.71082552,141.2,141.15,10.41929169]
[1763482925154,0.71,141.21,141.15,0.70846617]
[1763482925349,9.71082552,141.21,141.16,9.71082552]
[1763482925547,0.71,141.2,141.11,9.71082552]
[1763482925751,9.71082552,141.17,141.12,14.8194423]
[1763482926059,9.71082552,141.18,141.12,14.8194423]
[1763482926259,0.71,141.2,141.14,9.71082552]
[1763482926562,0.71,141.2,141.12,14.8194423]
[1763482926770,9.71082552,141.16,141.13,4.4]
[1763482927060,9.71082552,141.15,141.13,1.408]
[1763482927264,9.71082552,141.14,141.04,9.71082552]
[1763482927452,9.71082552,141.07,141.01,9.71082552]
[1763482927651,9.71082552,141.07,141.02,4.4]
[1763482928053,9.71082552,141.07,141.02,14.11082552]
[1763482928767,9.71082552,141.07,141.02,4.4]
[1763482929071,9.71082552,141.09,141.03,9.71082552]
[1763482929257,0.71,141.11,141.03,9.71082552]
[1763482929258,0.71,141.11,141.04,9.71082552]
[1763482929572,9.71082552,141.13,141.08,9.71082552]
[1763482929745,9.71082552,141.11,141.09,4.4]
[1763482930161,5.11,141.21,141.09,4.4]
[1763482930162,9.71082552,141.1,141.09,4.4]
[1763482930362,4.4,141.16,141.04,4.4]
[1763482930565,2.0,141.18,141.04,4.4]
[1763482930743,0.71,141.19,141.04,4.4]
[1763482930943,0.71,141.18,141.07,9.71082552]
[1763482931148,0.71,141.22,141.13,9.71082552]
[1763482931349,0.71,141.23,141.12,4.4]
[1763482931559,0.71,141.23,141.13,14.11082552]
[1763482931787,9.71082552,141.17,141.13,4.4]
[1763482932890,9.71082552,141.15,141.09,9.71082552]
[1763482933049,0.7,141.16,141.02,0.70911927]
[1763482933250,9.71082552,141.09,141.02,0.70911927]
[1763482933471,9.71082552,141.09,141.04,9.71082552]
[1763482933783,9.71082552,141.08,141.03,4.4]
[1763482933953,9.71082552,141.06,141.01,9.71082552]
[1763482934154,9.71082552,141.07,141.03,4.4]
[1763482934362,0.7,141.08,141.03,4.4]
[1763482934363,9.71082552,141.08,141.03,4.4]
[1763482934554,9.71082552,141.08,141.03,14.11082552]
[1763482934977,5.82398104,141.08,141.03,10.22398104]
[1763482935149,0.7,141.11,141.04,5.82398104]
[1763482935150,5.82398104,141.09,141.04,5.82398104]
[1763482935554,5.82398104,141.09,141.03,4.4]
[1763482935771,5.82398104,141.09,141.04,5.82398104]
[1763482935978,6.52398104,141.11,141.05,5.82398104]
[1763482936183,5.82398104,141.12,141.05,0.70896845]
[1763482936483,0.7,141.19,141.11,5.82398104]
[1763482936677,0.7,141.19,141.13,5.82398104]
[1763482936875,0.7,141.24,141.17,5.82398104]
[1763482937077,5.82398104,141.19,141.18,4.4]
[1763482937385,0.7,141.24,141.18,4.4]
[1763482937590,5.82398104,141.19,141.18,4.4]
[1763482937757,5.82398104,141.19,141.13,5.82398104]
[1763482937955,5.82398104,141.18,141.15,4.4]
[1763482938484,5.82398104,141.17,141.12,10.22398104]
[1763482938683,0.7,141.2,141.12,10.22398104]
[1763482938684,5.82398104,141.18,141.13,5.82398104]
[1763482938982,0.7,141.2,141.14,5.82398104]
[1763482939190,0.7,141.23,141.14,5.82398104]
[1763482939375,5.82398104,141.2,141.15,5.82398104]
[1763482939763,0.7,141.23,141.15,6.53244721]
[1763482939957,0.7,141.23,141.13,0.70856656]
[1763482940265,5.82398104,141.2,141.15,5.82398104]
[1763482940579,0.7,141.23,141.12,10.22398104]
[1763482940770,5.82398104,141.18,141.13,5.82398104]
[1763482940953,0.66,141.22,141.16,5.82398104]
[1763482941154,0.66,141.22,141.15,5.82398104]
[1763482941155,5.82398104,141.2,141.15,5.82398104]
[1763482941361,0.66,141.22,141.16,5.82398104]
[1763482941557,5.82398104,141.21,141.16,5.82398104]
[1763482941761,5.82398104,141.21,141.15,6.53244721]
[1763482942166,6.48398104,141.22,141.16,5.82398104]
[1763482942365,0.66,141.3,141.13,0.70856656]
[1763482942565,6.48398104,141.29,141.14,0.70851636]
[1763482942866,0.66,141.29,141.21,5.82398104]
[1763482943071,5.82398104,141.27,141.22,10.22398104]
[1763482943268,6.48398104,141.28,141.22,10.22398104]
[1763482943589,0.66,141.28,141.23,5.82398104]
[1763482944001,6.48398104,141.28,141.23,5.82398104]
[1763482944375,0.66,141.28,141.23,5.82398104]
[1763482944571,5.82398104,141.29,141.24,5.82398104]
[1763482945111,6.72327882,141.39,141.25,5.82398104]
[1763482945409,6.48398104,141.28,141.23,5.82398104]
[1763482945584,5.82398104,141.3,141.25,5.82398104]
[1763482945978,6.48398104,141.3,141.25,5.82398104]
[1763482946197,0.66,141.33,141.26,5.82398104]
[1763482946373,5.82398104,141.31,141.26,5.82398104]
[1763482946578,5.82398104,141.3,141.25,5.82398104]
[1763482947210,6.48398104,141.3,141.25,5.82398104]
[1763482947375,170.62398104,141.4,141.22,5.82398104]
[1763482947376,5.82398104,141.27,141.22,5.82398104]
[1763482947570,5.82398104,141.27,141.23,4.4]
[1763482947984,6.48398104,141.27,141.23,4.4]
[1763482948191,0.66,141.26,141.22,14.18882769]
[1763482948395,5.82398104,141.27,141.22,20.01280873]
[1763482948572,0.66,141.3,141.23,6.53204589]
[1763482948790,0.66,141.3,141.25,15.61280873]
[1763482948994,6.48398104,141.32,141.27,5.82398104]
[1763482949308,0.66,141.32,141.28,15.61280873]
[1763482949477,6.48398104,141.31,141.27,4.4]
[1763482949675,18.12096,141.37,141.27,4.4]
[1763482950007,18.78096,141.36,141.25,0.7079646]
[1763482950177,5.82398104,141.29,141.25,4.4]
[1763482950500,5.82398104,141.3,141.25,4.4]
[1763482950795,5.82398104,141.28,141.25,4.4]
[1763482951004,5.82398104,141.27,141.25,4.4]
[1763482951210,5.82398104,141.28,141.25,4.4]
[1763482951579,5.82398104,141.29,141.25,4.4]
[1763482951783,6.48398104,141.3,141.25,10.22398104]
[1763482952099,5.82398104,141.31,141.26,5.82398104]
[1763482952488,5.82398104,141.29,141.25,4.4]
[1763482952895,6.48398104,141.29,141.25,4.4]
[1763482953200,0.66,141.29,141.25,10.22398104]
[1763482953685,0.66,141.33,141.26,5.82398104]
[1763482953883,5.82398104,141.31,141.26,5.82398104]
[1763482954303,6.48398104,141.31,141.26,5.82398104]
[1763482954483,0.66,141.3,141.26,5.82398104]
[1763482954817,6.48398104,141.31,141.26,5.82398104]
[1763482955180,5.82398104,141.3,141.25,10.22398104]
[1763482955395,5.82398104,141.3,141.24,5.82398104]
[1763482955703,0.66,141.3,141.25,4.38]
[1763482956000,5.82398104,141.29,141.25,4.38]
[1763482956384,6.48398104,141.29,141.25,4.38]
[1763482956986,5.82398104,141.29,141.24,5.82398104]
[1763482957190,6.48398104,141.28,141.25,4.38]
[1763482957786,15.61280873,141.4,141.25,4.38]
[1763482957787,6.48398104,141.27,141.25,4.38]
[1763482957988,5.82398104,141.26,141.2,15.61280873]
[1763482958190,5.82398104,141.26,141.12,15.32]
[1763482958191,6.48398104,141.27,141.22,5.82398104]
[1763482958407,6.48398104,141.27,141.21,10.20398104]
[1763482958408,5.82398104,141.26,141.21,10.20398104]
[1763482958707,20.12096,141.37,141.23,5.82398104]
[1763482959010,5.82398104,141.26,141.21,4.38]
[1763482959210,5.82398104,141.25,141.21,4.38]
[1763482959408,5.82398104,141.24,141.21,4.38]
[1763482959718,5.82398104,141.26,141.21,4.38]
[1763482960215,6.48398104,141.25,141.21,4.38]
[1763482961019,5.82398104,141.22,141.21,4.38]
[1763482961381,0.66,141.22,141.21,4.38]
[1763482961607,6.48398104,141.22,141.21,4.38]
[1763482961920,23.94494104,141.3,141.21,4.38]
[1763482961921,0.66,141.25,141.21,4.38]
[1763482962095,5.82398104,141.23,141.21,4.38]
[1763482962495,0.72,141.22,141.15,9.78882769]
[1763482962696,5.82398104,141.2,141.16,4.38]
[1763482962906,5.82398104,141.21,141.16,4.38]
[1763482963086,5.82398104,141.21,141.16,10.20398104]
[1763482963087,0.72,141.2,141.16,10.20398104]
[1763482963287,6.54398104,141.2,141.16,4.38]
[1763482963789,18.12096,141.27,141.16,10.20398104]
[1763482963790,0.72,141.23,141.16,10.20398104]
[1763482964117,2.0,141.37,141.21,15.61280873]
[1763482964309,5.82398104,141.28,141.23,5.82398104]
[1763482964482,5.82398104,141.28,141.22,4.38]
[1763482964689,21.61011377,141.41,141.27,5.82398104]
[1763482964690,0.72,141.32,141.27,5.82398104]
[1763482964904,0.1,141.43,141.29,5.82398104]
[1763482964905,0.72,141.36,141.29,5.82398104]
[1763482965101,5.82398104,141.35,141.3,5.82398104]
[1763482965292,6.54398104,141.34,141.29,5.82398104]
[1763482965507,0.72,141.34,141.3,5.82398104]
[1763482965701,6.54398104,141.36,141.31,5.82398104]
[1763482965903,5.82398104,141.32,141.26,5.82398104]
[1763482966104,5.82398104,141.3,141.25,5.82398104]
[1763482966413,5.82398104,141.31,141.26,14.16882769]
[1763482966719,5.82398104,141.3,141.26,4.38]
[1763482967099,6.54398104,141.29,141.26,4.38]
[1763482967302,5.82398104,141.27,141.21,5.82398104]
[1763482967513,5.82398104,141.27,141.22,10.20398104]
[1763482967514,6.54398104,141.27,141.22,10.20398104]
[1763482967698,5.82398104,141.26,141.22,4.38]
[1763482968022,5.82398104,141.25,141.22,4.38]
[1763482968519,6.54398104,141.27,141.22,4.38]
[1763482968904,6.54398104,141.26,141.22,4.38]
[1763482969824,0.72,141.25,141.22,4.38]
[1763482970010,6.54398104,141.25,141.2,5.82398104]
[1763482970205,6.54398104,141.25,141.21,4.38]
[1763482971393,5.82398104,141.25,141.21,4.38]
[1763482971593,5.82398104,141.3,141.12,36.79189977]
[1763482971594,5.82398104,141.22,141.12,36.79189977]
[1763482971793,5.82398104,141.19,141.13,4.38]
[1763482972215,5.82398104,141.18,141.14,4.38]
[1763482972419,5.82398104,141.21,141.16,5.82398104]
[1763482972590,0.72,141.23,141.17,15.61280873]
[1763482972795,5.82398104,141.24,141.19,9.78882769]
[1763482973190,6.54398104,141.24,141.19,15.61280873]
[1763482973396,5.82398104,141.21,141.18,4.38]
[1763482973715,5.82398104,141.22,141.18,4.38]
[1763482973899,0.72,141.23,141.18,4.38]
[1763482974094,5.82398104,141.24,141.19,15.61280873]
[1763482974295,5.82398104,141.23,141.18,10.20398104]
[1763482974506,5.82398104,141.23,141.18,4.38]
[1763482974710,6.54398104,141.24,141.19,15.61280873]
[1763482974919,5.82398104,141.23,141.19,9.78882769]
[1763482975120,0.72,141.24,141.19,15.61280873]
[1763482975426,5.82398104,141.22,141.17,5.82398104]
[1763482975717,5.82398104,141.22,141.18,4.38]
[1763482976406,6.54398104,141.22,141.18,4.38]
[1763482976808,6.54398104,141.25,141.2,5.82398104]
[1763482977009,5.82398104,141.24,141.18,10.20398104]
[1763482977328,5.82398104,141.23,141.18,10.20398104]
[1763482977515,5.82398104,141.22,141.18,4.38]
[1763482978121,0.72,141.21,141.18,4.38]
[1763482979026,5.82398104,141.22,141.18,4.38]
[1763482979326,5.82398104,141.24,141.18,10.20398104]
[1763482979528,5.82398104,141.23,141.18,10.20398104]
[1763482979702,5.82398104,141.26,141.21,5.82398104]
[1763482979900,5.82398104,141.24,141.22,4.38]
[1763482980105,5.82398104,141.23,141.17,9.78882769]
[1763482980307,5.82398104,141.2,141.18,4.38]
[1763482980611,5.82398104,141.22,141.18,4.38]
[1763482980822,6.54398104,141.22,141.18,4.38]
[1763482980999,0.72,141.26,141.2,5.82398104]
[1763482981215,5.82398104,141.25,141.2,5.82398104]
[1763482981423,0.72,141.26,141.21,9.78882769]
[1763482981633,0.72,141.26,141.22,4.38]
[1763482981835,5.82398104,141.25,141.22,4.38]
[1763482982033,0.72,141.26,141.22,10.20398104]
[1763482982236,4.73865667,141.36,141.24,5.82398104]
[1763482982237,0.72,141.29,141.24,5.82398104]
[1763482982538,0.72,141.35,141.26,5.82398104]
[1763482982739,5.82398104,141.27,141.15,0.70846617]
[1763482982927,5.82398104,141.26,141.2,15.61280873]
[1763482983234,5.82398104,141.26,141.21,10.20398104]
[1763482983436,5.82398104,141.25,141.21,4.38]
[1763482983641,5.82398104,141.24,141.18,15.61280873]
[1763482983824,18.12096,141.34,141.21,5.82398104]
[1763482984028,5.82398104,141.27,141.21,5.82398104]
[1763482984442,5.82398104,141.27,141.22,5.82398104]
[1763482984743,5.82398104,141.27,141.23,4.38]
[1763482984744,6.54398104,141.27,141.23,4.38]
[1763482984950,5.82398104,141.25,141.23,4.38]
[1763482985129,5.82398104,141.24,141.18,14.16882769]
[1763482985328,0.72,141.24,141.18,14.16882769]
[1763482985520,0.72,141.24,141.18,19.99280873]
[1763482985521,5.82398104,141.23,141.18,19.99280873]
[1763482985926,6.54398104,141.22,141.13,0.70856656]
[1763482986120,6.54398104,141.22,141.13,5.82398104]
[1763482986121,5.82398104,141.18,141.13,5.82398104]
[1763482986333,5.82398104,141.2,141.14,5.82398104]
[1763482986637,0.72,141.21,141.14,5.82398104]
[1763482986638,5.82398104,141.21,141.16,5.82398104]
[1763482986813,5.82398104,141.21,141.17,4.38]
[1763482987019,6.54398104,141.21,141.17,4.38]
[1763482987214,18.12096,141.27,141.17,4.38]
[1763482987446,5.82398104,141.21,141.17,4.38]
[1763482987748,0.72,141.21,141.17,4.38]
[1763482987949,6.54398104,141.21,141.17,4.38]
[1763482988337,0.72,141.25,141.17,10.20398104]
[1763482988529,0.72,141.25,141.2,5.82398104]
[1763482988856,6.54398104,141.25,141.21,4.38]
[1763482989046,0.72,141.25,141.21,4.38]
[1763482989225,6.54398104,141.28,141.22,9.78882769]
[1763482989422,5.86945652,141.36,141.22,9.78882769]
[1763482989423,5.82398104,141.31,141.26,15.61280873]
[1763482989753,0.72,141.35,141.27,4.38]
[1763482990056,6.75221107,141.38,141.16,0.70841598]
[1763482990057,5.82398104,141.28,141.24,4.2]
[1763482990248,5.82398104,141.26,141.24,4.2]
[1763482990446,5.82398104,141.27,141.24,4.2]
[1763482990644,5.82398104,141.29,141.25,9.78882769]
[1763482990842,0.72,141.31,141.25,9.78882769]
[1763482991156,5.82398104,141.26,141.15,0.70846617]
[1763482991461,0.72,141.28,141.23,15.61280873]
[1763482991616,5.82398104,141.31,141.25,15.61280873]
[1763482992020,5.82398104,141.3,141.25,9.78882769]
[1763482992318,5.82398104,141.28,141.24,4.38]
[1763482992629,5.82398104,141.28,141.22,9.78882769]
[1763482992630,0.67,141.29,141.25,4.38]
[1763482992815,5.82398104,141.26,141.25,4.38]
[1763482993020,5.82398104,141.26,141.15,5.82398104]
[1763482993238,0.67,141.25,141.16,10.20398104]
[1763482993448,6.49398104,141.25,141.2,5.82398104]
[1763482993654,0.67,141.29,141.21,14.16882769]
[1763482993863,5.82398104,141.25,141.21,4.38]
[1763482994058,5.82398104,141.23,141.22,4.38]
[1763482994429,6.49398104,141.23,141.22,4.38]
[1763482994749,6.49398104,141.23,141.17,4.38]
[1763482995047,5.82398104,141.2,141.17,4.38]
[1763482995537,5.82398104,141.21,141.17,4.38]
[1763482996043,5.82398104,141.2,141.17,4.38]
[1763482996230,5.82398104,141.21,141.17,4.38]
[1763482996425,6.49398104,141.2,141.15,9.78882769]
[1763482996737,6.49398104,141.2,141.16,4.38]
[1763482997052,10.38778689,141.2,141.16,4.38]
[1763482997220,10.38778689,141.19,141.16,4.38]
[1763482997425,9.71778689,141.18,141.16,4.38]
[1763482998146,10.38778689,141.19,141.16,4.38]
[1763482998449,9.71778689,141.2,141.17,9.78882769]
[1763482998653,4.74223041,141.31,141.17,9.78882769]
[1763482998654,9.71778689,141.23,141.18,9.71778689]
[1763482998834,0.67,141.29,141.19,9.71778689]
[1763482998835,9.71778689,141.24,141.19,9.71778689]
[1763482999039,9.71778689,141.24,141.2,14.16882769]
[1763482999658,9.71778689,141.21,141.2,4.38]
[1763482999847,10.38778689,141.21,141.14,9.71778689]
[1763483000154,9.71778689,141.18,141.17,4.38]
[1763483000650,10.41778689,141.18,141.17,4.38]
[1763483000826,10.41778689,141.18,141.07,0.70886793]
[1763483000827,10.41778689,141.18,141.14,4.38]
[1763483001027,9.71778689,141.16,141.14,4.38]
[1763483001246,18.12096,141.21,141.14,4.38]
[1763483001431,9.71778689,141.17,141.14,4.38]
[1763483001637,0.7,141.18,141.14,4.38]
[1763483001951,9.71778689,141.17,141.14,4.38]
[1763483002155,0.7,141.18,141.14,4.38]
[1763483002156,9.71778689,141.16,141.14,4.38]
[1763483002523,10.41778689,141.16,141.14,4.38]
[1763483002960,10.41778689,141.15,141.14,4.38]
[1763483003460,9.71778689,141.24,141.14,4.38]
[1763483003461,0.7,141.17,141.14,4.38]
[1763483003670,10.41778689,141.17,141.14,4.38]
[1763483003870,9.71778689,141.15,141.14,4.38]
[1763483004164,2.0,141.26,141.14,4.38]
[1763483004349,10.41778689,141.17,141.14,4.38]
[1763483004555,9.71778689,141.16,141.14,4.38]
[1763483004776,10.41778689,141.16,141.14,4.38]
[1763483005264,27.83874689,141.24,141.07,9.71778689]
[1763483005265,10.41778689,141.15,141.07,9.71778689]
[1763483005563,10.41778689,141.15,141.1,9.78882769]
[1763483005964,9.71778689,141.16,141.1,19.50661458]
[1763483006137,0.7,141.15,141.1,19.50661458]
[1763483006463,0.7,141.15,141.1,9.78882769]
[1763483006464,10.41778689,141.15,141.1,9.78882769]
[1763483006777,10.41778689,141.15,141.1,9.71778689]
[1763483007071,9.71778689,141.13,141.09,9.78882769]
[1763483007250,9.71778689,141.11,141.09,9.78882769]
[1763483007670,9.71778689,141.11,141.08,4.38]
[1763483007671,10.41778689,141.11,141.08,14.16882769]
[1763483007869,18.12096,141.2,141.08,4.38]
[1763483007870,10.41778689,141.1,141.08,4.38]
[1763483008169,9.71778689,141.1,141.08,4.38]
[1763483008350,9.71778689,141.11,141.08,4.38]
[1763483008548,0.7,141.12,141.08,4.38]
[1763483008761,0.7,141.12,141.09,9.78882769]
[1763483009373,0.7,141.15,141.1,9.71778689]
[1763483009668,10.41778689,141.15,141.12,9.78882769]
[1763483010447,0.7,141.18,141.12,19.50661458]
[1763483010772,9.71778689,141.17,141.12,19.50661458]
[1763483011141,10.41778689,141.17,141.12,19.50661458]
[1763483011344,9.71778689,141.19,141.13,9.71778689]
[1763483011567,9.71778689,141.18,141.15,9.78882769]
[1763483011944,10.41778689,141.18,141.16,4.38]
[1763483012164,9.71778689,141.19,141.16,4.38]
[1763483012474,10.41778689,141.19,141.16,4.38]
[1763483012638,0.7,141.18,141.16,4.38]
[1763483013055,9.71778689,141.17,141.16,4.38]
[1763483013557,10.41778689,141.17,141.16,4.38]
[1763483013760,10.41778689,141.17,141.13,4.38]
[1763483013939,0.7,141.17,141.13,4.38]
[1763483014145,0.7,141.16,141.13,4.38]
[1763483014364,10.41778689,141.16,141.13,4.38]
[1763483014568,9.71778689,141.18,141.13,14.09778689]
[1763483014775,9.71778689,141.17,141.13,4.38]
[1763483014947,18.12096,141.22,141.13,4.38]
[1763483014948,9.71778689,141.16,141.13,4.38]
[1763483015361,0.7,141.16,141.13,4.38]
[1763483015651,9.71778689,141.17,141.13,4.38]
[1763483015851,0.7,141.16,141.13,4.38]
[1763483016274,9.71778689,141.15,141.07,27.90978769]
[1763483016583,9.71778689,141.17,141.12,9.71778689]
[1763483016741,9.71778689,141.17,141.11,9.78882769]
[1763483016742,9.71778689,141.17,141.13,14.16882769]
[1763483017145,18.12096,141.21,141.04,118.42]
[1763483017146,9.71778689,141.14,141.11,4.38]
[1763483017383,9.71778689,141.12,141.11,4.38]
[1763483017674,16.79824219,141.24,141.12,9.78882769]
[1763483017675,9.71778689,141.17,141.12,9.78882769]
[1763483017868,9.71778689,141.15,141.12,9.78882769]
[1763483018184,9.71778689,141.16,141.12,9.78882769]
[1763483018350,0.7,141.2,141.12,9.78882769]
[1763483018714,9.71778689,141.17,141.12,19.50661458]
[1763483018880,9.71778689,141.16,141.12,9.78882769]
[1763483019503,0.7,141.15,141.13,4.38]
[1763483019693,10.41778689,141.18,141.13,4.38]
[1763483019898,0.7,141.18,141.14,19.50661458]
[1763483020384,10.41778689,141.18,141.14,9.78882769]
[1763483020978,0.7,141.2,141.14,19.50661458]
[1763483021177,10.41778689,141.2,141.16,9.78882769]
[1763483021425,0.7,141.2,141.17,4.38]
[1763483021589,10.41778689,141.22,141.17,4.38]
[1763483021784,0.7,141.21,141.17,4.38]
[1763483022104,0.7,141.21,141.17,14.09778689]
[1763483022302,10.41778689,141.21,141.17,4.38]
[1763483022711,0.66,141.2,141.18,4.38]
[1763483023398,10.37778689,141.23,141.18,14.09778689]
[1763483023581,0.66,141.23,141.19,19.50661458]
[1763483024005,9.71778689,141.25,141.2,9.71778689]
[1763483024308,9.71778689,141.24,141.19,19.50661458]
[1763483024495,10.37778689,141.24,141.2,4.38]
[1763483024704,9.71778689,141.24,141.2,4.38]
[1763483025003,10.37778689,141.24,141.2,4.38]
[1763483025178,18.12096,141.28,141.2,4.38]
[1763483025179,10.37778689,141.23,141.2,4.38]
[1763483025377,9.71778689,141.22,141.2,4.38]
[1763483025577,9.71778689,141.21,141.17,9.78882769]
[1763483025924,9.71778689,141.2,141.18,4.38]
[1763483026227,0.66,141.19,141.18,4.38]
[1763483027530,0.66,141.23,141.18,4.38]
[1763483027683,10.37778689,141.23,141.18,4.38]
[1763483027984,9.71778689,141.21,141.18,4.38]
[1763483028187,9.71778689,141.2,141.18,4.38]
[1763483028520,10.37778689,141.2,141.18,4.38]
[1763483028680,0.66,141.19,141.18,4.38]
[1763483030510,18.12096,141.26,141.18,14.16882769]
[1763483030511,0.66,141.21,141.18,14.16882769]
[1763483031206,4.38,141.26,141.18,14.16882769]
[1763483031408,9.71778689,141.22,141.18,14.16882769]
[1763483031785,9.71778689,141.23,141.18,23.88661458]
[1763483032203,10.37778689,141.25,141.2,9.71778689]
[1763483032404,10.37778689,141.25,141.21,4.38]
[1763483032405,0.66,141.25,141.21,4.38]
[1763483032697,9.71778689,141.26,141.21,14.09778689]
[1763483032889,10.37778689,141.26,141.21,14.09778689]
[1763483033107,9.71778689,141.26,141.21,14.09778689]